fUSD/lending_fUSD_20240905
["ID","MTS","AMOUNT","RATE_DAILY","PERIOD"]
[337211463,1725501046647,-582.39,0.00014886,2]
[337211464,1725501046656,-500.0,0.00014886,2]
[337211465,1725501046666,-500.0,0.00014886,2]
[337211466,1725501046675,-500.94,0.00014886,2]
[337211467,1725501046685,-624.44,0.00014886,2]
[337211468,1725501046695,-500.0,0.00014886,2]
[337211469,1725501046704,-628.04,0.00014887,2]
[337211470,1725501046714,-550.23590573,0.00014887,2]
[337211471,1725501046723,-500.0,0.00014887,2]
[337211472,1725501046733,-2026.89,0.00014888,2]
[337211473,1725501046742,-500.0,0.00014888,2]
[337211474,1725501046752,-1474.2,0.00014888,2]
[337211475,1725501046761,-500.0,0.00014888,2]
[337211476,1725501046771,-500.0,0.00014888,2]
[337211478,1725501046780,-500.0,0.00014888,2]
[337211479,1725501046789,-500.0,0.00014888,2]
[337211481,1725501046799,-500.0,0.00014888,2]
[337211483,1725501046809,-500.0,0.00014888,2]
[337211485,1725501046819,-500.0,0.00014888,2]
[337211487,1725501046829,-997.26,0.00014888,2]
[337211489,1725501046839,-500.0,0.00014888,2]
[337211491,1725501046849,-298.64567434,0.00014888,2]
[337211493,1725501046858,-3153.18,0.00014888,2]
[337211495,1725501046868,-663.6,0.00014888,2]
[337211497,1725501046879,-940.12,0.00014888,2]
[337211499,1725501046888,-566.94,0.00014888,2]
[337211501,1725501046898,-3245.99,0.00014888,2]
[337211503,1725501046908,-695.26,0.00014888,2]
[337211505,1725501046918,-500.0,0.00014888,2]
[337211507,1725501046927,-534.68,0.00014888,2]
[337211509,1725501046937,-500.0,0.00014888,2]
[337211511,1725501046946,-500.0,0.00014888,2]
[337211518,1725501047015,-178.2708441,0.00014888,2]
[337211520,1725501047025,-1289.87,0.00014888,2]
[337211522,1725501047035,-500.0,0.00014888,2]
[337211524,1725501047046,-506.86303093,0.00014888,2]
[337211526,1725501047055,-500.0,0.00014888,2]
[337211528,1725501047064,-875.37,0.00014888,2]
[337211530,1725501047074,-500.0,0.00014888,2]
[337211532,1725501047083,-625.54,0.00014888,2]
[337211533,1725501047092,-743.54,0.00014888,2]
[337211535,1725501047101,-500.0,0.00014888,2]
[337211537,1725501047111,-1846.82,0.00014888,2]
[337211539,1725501047120,-500.0,0.00014888,2]
[337211541,1725501047130,-500.0,0.00014888,2]
[337211543,1725501047140,-1087.48,0.00014888,2]
[337211545,1725501047149,-500.0,0.00014888,2]
[337211547,1725501047158,-500.0,0.00014888,2]
[337211548,1725501047167,-846.52,0.00014888,2]
[337211550,1725501047177,-961.98,0.00014888,2]
[337211552,1725501047186,-1844.78,0.00014888,2]
[337211554,1725501047195,-528.99268323,0.00014888,2]
[337211556,1725501047205,-1108.75,0.00014888,2]
[337211558,1725501047215,-524.73808103,0.00014888,2]
[337211560,1725501047224,-2656.38,0.00014888,2]
[337211561,1725501047233,-812.89,0.00014888,2]
[337211563,1725501047242,-500.0,0.00014888,2]
[337211565,1725501047252,-500.0,0.00014888,2]
[337211567,1725501047262,-518.7,0.00014888,2]
[337211569,1725501047271,-764.18,0.00014888,2]
[337211571,1725501047280,-500.0,0.00014888,2]
[337211573,1725501047290,-500.0,0.00014888,2]
[337211575,1725501047300,-2466.34,0.00014888,2]
[337211577,1725501047310,-500.54230784,0.00014888,2]
[337211579,1725501047320,-500.0,0.00014888,2]
[337211581,1725501047329,-1065.97,0.00014888,2]
[337211583,1725501047339,-500.0,0.00014888,2]
[337211585,1725501047348,-3080.79,0.00014888,2]
[337211587,1725501047358,-500.0,0.00014888,2]
[337211589,1725501047367,-500.0,0.00014888,2]
[337211591,1725501047377,-1138.67,0.00014888,2]
[337211593,1725501047386,-837.31,0.00014888,2]
[337211595,1725501047399,-500.0,0.00014888,2]
[337211597,1725501047408,-500.0,0.00014888,2]
[337211598,1725501047418,-1327.1,0.00014888,2]
[337211600,1725501047427,-811.05,0.00014888,2]
[337211602,1725501047437,-342.03483273,0.00014888,2]
[337211604,1725501047446,-500.0,0.00014888,2]
[337211606,1725501047455,-500.0,0.00014888,2]
[337211608,1725501047465,-691.73,0.00014888,2]
[337211610,1725501047475,-1036.16,0.00014888,2]
[337211612,1725501047485,-622.99,0.00014888,2]
[337211614,1725501047494,-500.0,0.00014888,2]
[337211616,1725501047503,-500.0,0.00014888,2]
[337211618,1725501047512,-500.0,0.00014888,2]
[337211620,1725501047522,-500.0,0.00014888,2]
[337211622,1725501047531,-1354.44,0.00014888,2]
[337211624,1725501047540,-500.0,0.00014888,2]
[337211626,1725501047549,-680.76,0.00014888,2]
[337211628,1725501047558,-958.36,0.00014888,2]
[337211630,1725501047568,-500.0,0.00014888,2]
[337211632,1725501047577,-1518.49,0.00014888,2]
[337211634,1725501047586,-500.0,0.00014888,2]
[337211635,1725501047595,-500.0,0.00014888,2]
[337211637,1725501047604,-1118.3,0.00014888,2]
[337211639,1725501047614,-500.0,0.00014888,2]
[337211641,1725501047623,-500.0,0.00014888,2]
[337211643,1725501047631,-500.0,0.00014888,2]
[337211645,1725501047641,-500.0,0.00014888,2]
[337211647,1725501047651,-500.0,0.00014888,2]
[337211649,1725501047661,-636.1,0.00014888,2]
[337211651,1725501047671,-500.0,0.00014888,2]
[337211653,1725501047680,-889.54,0.00014888,2]
[337211655,1725501047689,-500.0,0.00014888,2]
[337211657,1725501047699,-500.0,0.00014888,2]
[337211659,1725501047707,-500.0,0.00014888,2]
[337211661,1725501047717,-500.0,0.00014888,2]
[337211663,1725501047726,-582.39,0.00014888,2]
[337211665,1725501047735,-500.0,0.00014888,2]
[337211667,1725501047744,-500.0,0.00014888,2]
[337211669,1725501047754,-500.94,0.00014888,2]
[337211671,1725501047763,-624.44,0.00014888,2]
[337211673,1725501047773,-500.0,0.00014888,2]
[337211674,1725501047782,-1078.93363158,0.00014889,2]
[337211676,1725501047791,-2026.89,0.00014889,2]
[337211678,1725501047801,-500.0,0.00014889,2]
[337211680,1725501047810,-1474.2,0.00014889,2]
[337211682,1725501047820,-500.0,0.00014889,2]
[337211684,1725501047829,-363.10872031,0.00014889,2]
[337211686,1725501047839,-501.93855783,0.00014889,2]
[337211688,1725501047848,-500.0,0.00014889,2]
[337211690,1725501047857,-628.04,0.00014889,2]
[337211692,1725501047866,-500.0,0.00014889,2]
[337211694,1725501047875,-500.0,0.00014889,2]
[337211696,1725501047884,-603.73888995,0.00014889,2]
[337211698,1725501047894,-997.26,0.00014889,2]
[337211700,1725501047903,-500.0,0.00014889,2]
[337211702,1725501047913,-529.16473911,0.00014889,2]
[337211704,1725501047922,-304.47862281,0.00014889,2]
[337211706,1725501047931,-1311.39,0.00014889,2]
[337211708,1725501047940,-3153.18,0.00014889,2]
[337211710,1725501047949,-663.6,0.00014889,2]
[337211712,1725501047958,-940.12,0.00014889,2]
[337211713,1725501047969,-566.94,0.00014889,2]
[337211715,1725501047978,-3245.99,0.00014889,2]
[337211717,1725501047987,-500.0,0.00014889,2]
[337211719,1725501047996,-695.26,0.00014889,2]
[337211721,1725501048006,-340.0354666,0.00014889,2]
[337211723,1725501048015,-534.68,0.00014889,2]
[337211725,1725501048025,-500.0,0.00014889,2]
[337211727,1725501048034,-500.0,0.00014889,2]
[337211729,1725501048044,-1289.87,0.00014889,2]
[337211731,1725501048053,-500.0,0.00014889,2]
[337211733,1725501048062,-500.0,0.00014889,2]
[337211735,1725501048071,-875.37,0.00014889,2]
[337211737,1725501048081,-314.29852457,0.00014889,2]
[337211739,1725501048090,-625.54,0.00014889,2]
[337211741,1725501048099,-743.54,0.00014889,2]
[337211743,1725501048108,-500.0,0.00014889,2]
[337211745,1725501048118,-1846.82,0.00014889,2]
[337211747,1725501048127,-500.0,0.00014889,2]
[337211749,1725501048135,-500.0,0.00014889,2]
[337211751,1725501048145,-1087.48,0.00014889,2]
[337211753,1725501048154,-500.0,0.00014889,2]
[337211755,1725501048163,-500.0,0.00014889,2]
[337211757,1725501048173,-846.52,0.00014889,2]
[337211759,1725501048183,-961.98,0.00014889,2]
[337211761,1725501048192,-1844.78,0.00014889,2]
[337211763,1725501048201,-1108.75,0.00014889,2]
[337211765,1725501048210,-2656.38,0.00014889,2]
[337211767,1725501048219,-812.89,0.00014889,2]
[337211769,1725501048228,-500.0,0.00014889,2]
[337211771,1725501048237,-500.0,0.00014889,2]
[337211773,1725501048246,-518.7,0.00014889,2]
[337211775,1725501048256,-764.18,0.00014889,2]
[337211777,1725501048265,-306.82370074,0.00014889,2]
[337211779,1725501048274,-500.0,0.00014889,2]
[337211781,1725501048283,-2466.34,0.00014889,2]
[337211783,1725501048293,-500.0,0.00014889,2]
[337211785,1725501048302,-1065.97,0.00014889,2]
[337211786,1725501048311,-500.0,0.00014889,2]
[337211788,1725501048320,-3080.79,0.00014889,2]
[337211790,1725501048329,-500.0,0.00014889,2]
[337211792,1725501048338,-500.0,0.00014889,2]
[337211794,1725501048347,-1138.67,0.00014889,2]
[337211796,1725501048356,-837.31,0.00014889,2]
[337211798,1725501048365,-513.83539415,0.00014889,2]
[337211800,1725501048375,-501.88980659,0.00014889,2]
[337211802,1725501048383,-1327.1,0.00014889,2]
[337211804,1725501048392,-811.05,0.00014889,2]
[337211806,1725501048401,-500.0,0.00014889,2]
[337211808,1725501048410,-500.0,0.00014889,2]
[337211810,1725501048419,-691.73,0.00014889,2]
[337211812,1725501048428,-1036.16,0.00014889,2]
[337211814,1725501048437,-622.99,0.00014889,2]
[337211816,1725501048446,-500.0,0.00014889,2]
[337211818,1725501048455,-500.0,0.00014889,2]
[337211819,1725501048464,-500.0,0.00014889,2]
[337211821,1725501048473,-500.0,0.00014889,2]
[337211823,1725501048482,-1354.44,0.00014889,2]
[337211825,1725501048491,-500.0,0.00014889,2]
[337211827,1725501048501,-680.76,0.00014889,2]
[337211829,1725501048512,-958.36,0.00014889,2]
[337211831,1725501048521,-500.0,0.00014889,2]
[337211833,1725501048530,-1518.49,0.00014889,2]
[337211835,1725501048539,-500.0,0.00014889,2]
[337211837,1725501048549,-647.96938504,0.00014889,2]
[337211839,1725501048558,-1118.3,0.00014889,2]
[337211841,1725501048567,-500.0,0.00014889,2]
[337211843,1725501048576,-500.0,0.00014889,2]
[337211845,1725501048585,-500.0,0.00014889,2]
[337211847,1725501048594,-489.48754521,0.00014889,2]
[337211849,1725501048603,-500.0,0.00014889,2]
[337211851,1725501048612,-636.1,0.00014889,2]
[337211852,1725501048621,-500.0,0.00014889,2]
[337211854,1725501048630,-889.54,0.00014889,2]
[337211856,1725501048639,-500.0,0.00014889,2]
[337211858,1725501048648,-500.0,0.00014889,2]
[337211860,1725501048657,-500.0,0.00014889,2]
[337211862,1725501048666,-500.0,0.00014889,2]
[337211864,1725501048676,-582.39,0.00014889,2]
[337211866,1725501048685,-500.0,0.00014889,2]
[337211868,1725501048694,-500.0,0.00014889,2]
[337211870,1725501048703,-500.94,0.00014889,2]
[337211872,1725501048711,-624.44,0.00014889,2]
[337211874,1725501048720,-500.0,0.00014889,2]
[337211876,1725501048730,-2026.89,0.0001489,2]
[337211878,1725501048739,-500.0,0.0001489,2]
[337211880,1725501048747,-1474.2,0.0001489,2]
[337211882,1725501048756,-500.0,0.0001489,2]
[337211884,1725501048766,-500.0,0.0001489,2]
[337211886,1725501048775,-500.0,0.0001489,2]
[337211888,1725501048785,-500.0,0.0001489,2]
[337211889,1725501048794,-997.26,0.0001489,2]
[337211891,1725501048803,-500.0,0.0001489,2]
[337211893,1725501048813,-1311.39,0.0001489,2]
[337211896,1725501048823,-3153.18,0.0001489,2]
[337211898,1725501048834,-663.6,0.0001489,2]
[337211900,1725501048843,-940.12,0.0001489,2]
[337211902,1725501048852,-566.94,0.0001489,2]
[337211903,1725501048861,-3245.99,0.0001489,2]
[337211905,1725501048871,-500.0,0.0001489,2]
[337211907,1725501048880,-695.26,0.0001489,2]
[337211909,1725501048889,-534.68,0.0001489,2]
[337211911,1725501048898,-500.0,0.0001489,2]
[337211913,1725501048908,-500.0,0.0001489,2]
[337211915,1725501048917,-1289.87,0.0001489,2]
[337211917,1725501048927,-500.0,0.0001489,2]
[337211919,1725501048936,-500.0,0.0001489,2]
[337211921,1725501048946,-875.37,0.0001489,2]
[337211923,1725501048956,-625.54,0.0001489,2]
[337211925,1725501048966,-743.54,0.0001489,2]
[337211927,1725501048977,-500.0,0.0001489,2]
[337211929,1725501048987,-1846.82,0.0001489,2]
[337211931,1725501048996,-500.0,0.0001489,2]
[337211933,1725501049007,-500.0,0.0001489,2]
[337211935,1725501049016,-1087.48,0.0001489,2]
[337211937,1725501049025,-500.0,0.0001489,2]
[337211939,1725501049035,-500.0,0.0001489,2]
[337211941,1725501049046,-846.52,0.0001489,2]
[337211943,1725501049056,-961.98,0.0001489,2]
[337211945,1725501049065,-1844.78,0.0001489,2]
[337211947,1725501049074,-1108.75,0.0001489,2]
[337211949,1725501049084,-2656.38,0.0001489,2]
[337211951,1725501049094,-812.89,0.0001489,2]
[337211953,1725501049103,-500.0,0.0001489,2]
[337211954,1725501049112,-500.0,0.0001489,2]
[337211956,1725501049122,-518.7,0.0001489,2]
[337211958,1725501049131,-764.18,0.0001489,2]
[337211959,1725501049141,-500.0,0.0001489,2]
[337211960,1725501049154,-2466.34,0.0001489,2]
[337211961,1725501049164,-500.0,0.0001489,2]
[337211962,1725501049173,-1065.97,0.0001489,2]
[337211963,1725501049183,-268.30570773,0.0001489,2]
[337211965,1725501049192,-3080.79,0.0001489,2]
[337211967,1725501049201,-500.0,0.0001489,2]
[337211968,1725501049211,-500.0,0.0001489,2]
[337211970,1725501049221,-1138.67,0.0001489,2]
[337211972,1725501049230,-837.31,0.0001489,2]
[337211974,1725501049240,-1327.1,0.0001489,2]
[337211976,1725501049249,-811.05,0.0001489,2]
[337211978,1725501049259,-500.0,0.0001489,2]
[337211980,1725501049269,-500.0,0.0001489,2]
[337211982,1725501049278,-691.73,0.0001489,2]
[337211984,1725501049287,-1036.16,0.0001489,2]
[337211986,1725501049296,-622.99,0.0001489,2]
[337211988,1725501049305,-500.0,0.0001489,2]
[337211989,1725501049314,-500.0,0.0001489,2]
[337211991,1725501049324,-500.0,0.0001489,2]
[337211993,1725501049334,-500.0,0.0001489,2]
[337211995,1725501049343,-1354.44,0.0001489,2]
[337211997,1725501049353,-500.0,0.0001489,2]
[337211999,1725501049363,-680.76,0.0001489,2]
[337212001,1725501049372,-958.36,0.0001489,2]
[337212003,1725501049382,-500.0,0.0001489,2]
[337212005,1725501049395,-1518.49,0.0001489,2]
[337212007,1725501049404,-500.0,0.0001489,2]
[337212009,1725501049414,-1118.3,0.0001489,2]
[337212011,1725501049423,-442.20127306,0.0001489,2]
[337212013,1725501049433,-500.0,0.0001489,2]
[337212015,1725501049443,-500.0,0.0001489,2]
[337212017,1725501049453,-500.0,0.0001489,2]
[337212019,1725501049463,-636.1,0.0001489,2]
[337212021,1725501049473,-500.0,0.0001489,2]
[337212023,1725501049482,-889.54,0.0001489,2]
[337212025,1725501049492,-500.0,0.0001489,2]
[337212027,1725501049502,-645.72421264,0.0001489,2]
[337212029,1725501049512,-500.0,0.0001489,2]
[337212031,1725501049522,-635.2194367,0.0001489,2]
[337212033,1725501049531,-582.39,0.0001489,2]
[337212035,1725501049541,-500.0,0.0001489,2]
[337212037,1725501049551,-632.13011587,0.0001489,2]
[337212039,1725501049560,-500.94,0.0001489,2]
[337212041,1725501049570,-624.44,0.0001489,2]
[337212043,1725501049579,-500.0,0.0001489,2]
[337212045,1725501049589,-628.04,0.00014891,2]
[337212046,1725501049598,-500.0,0.00014891,2]
[337212048,1725501049607,-3153.18,0.00014891,2]
[337212050,1725501049616,-940.12,0.00014891,2]
[337212052,1725501049625,-566.94,0.00014891,2]
[337212054,1725501049634,-534.68,0.00014891,2]
[337212056,1725501049645,-518.7,0.00014891,2]
[337212058,1725501049654,-1065.97,0.00014891,2]
[337212060,1725501049664,-837.31,0.00014891,2]
[337212062,1725501049673,-305.61619434,0.00014893,2]
[337212064,1725501049682,-639.16158784,0.00014893,2]
[337212066,1725501049691,-500.0,0.00014898,2]
[337212068,1725501049701,-2026.89,0.00014899,2]
[337212070,1725501049710,-500.0,0.00014899,2]
[337212072,1725501049719,-1474.2,0.00014899,2]
[337212074,1725501049728,-500.0,0.00014899,2]
[337212076,1725501049737,-500.0,0.00014899,2]
[337212078,1725501049746,-500.0,0.00014899,2]
[337212080,1725501049754,-503.60120349,0.00014899,2]
[337212081,1725501049763,-997.26,0.00014899,2]
[337212083,1725501049772,-1311.39,0.00014899,2]
[337212085,1725501049781,-663.6,0.00014899,2]
[337212087,1725501049790,-3245.99,0.00014899,2]
[337212089,1725501049799,-500.0,0.00014899,2]
[337212091,1725501049809,-695.26,0.00014899,2]
[337212093,1725501049818,-500.0,0.00014899,2]
[337212095,1725501049828,-500.0,0.00014899,2]
[337212097,1725501049837,-1289.87,0.00014899,2]
[337212099,1725501049846,-500.0,0.00014899,2]
[337212101,1725501049855,-500.0,0.00014899,2]
[337212103,1725501049864,-875.37,0.00014899,2]
[337212105,1725501049874,-625.54,0.00014899,2]
[337212107,1725501049883,-743.54,0.00014899,2]
[337212109,1725501049892,-624.77921913,0.00014899,2]
[337212111,1725501049902,-1846.82,0.00014899,2]
[337212113,1725501049911,-500.0,0.00014899,2]
[337212115,1725501049920,-500.0,0.00014899,2]
[337212117,1725501049929,-1087.48,0.00014899,2]
[337212119,1725501049939,-500.0,0.00014899,2]
[337212121,1725501049948,-500.0,0.00014899,2]
[337212123,1725501049957,-846.52,0.00014899,2]
[337212125,1725501049968,-961.98,0.00014899,2]
[337212127,1725501049977,-1844.78,0.00014899,2]
[337212129,1725501049987,-1108.75,0.00014899,2]
[337212132,1725501049996,-2656.38,0.00014899,2]
[337212134,1725501050005,-812.89,0.00014899,2]
[337212135,1725501050015,-500.0,0.00014899,2]
[337212137,1725501050024,-500.0,0.00014899,2]
[337212139,1725501050034,-764.18,0.00014899,2]
[337212141,1725501050043,-500.0,0.00014899,2]
[337212144,1725501050056,-2466.34,0.00014899,2]
[337212146,1725501050065,-513.62851887,0.00014899,2]
[337212148,1725501050074,-3080.79,0.00014899,2]
[337212150,1725501050083,-500.0,0.00014899,2]
[337212152,1725501050092,-500.0,0.00014899,2]
[337212154,1725501050101,-1138.67,0.00014899,2]
[337212156,1725501050111,-1327.1,0.00014899,2]
[337212158,1725501050119,-811.05,0.00014899,2]
[337212160,1725501050128,-500.0,0.00014899,2]
[337212162,1725501050137,-500.0,0.00014899,2]
[337212164,1725501050146,-691.73,0.00014899,2]
[337212166,1725501050156,-1036.16,0.00014899,2]
[337212168,1725501050165,-622.99,0.00014899,2]
[337212170,1725501050174,-500.0,0.00014899,2]
[337212172,1725501050183,-500.0,0.00014899,2]
[337212174,1725501050192,-500.0,0.00014899,2]
[337212176,1725501050201,-500.0,0.00014899,2]
[337212178,1725501050212,-1354.44,0.00014899,2]
[337212180,1725501050222,-172.83090687,0.00014899,2]
[337212182,1725501050231,-680.76,0.00014899,2]
[337212183,1725501050241,-958.36,0.00014899,2]
[337212185,1725501050251,-500.0,0.00014899,2]
[337212187,1725501050261,-1518.49,0.00014899,2]
[337212189,1725501050271,-500.0,0.00014899,2]
[337212191,1725501050281,-1118.3,0.00014899,2]
[337212193,1725501050291,-500.0,0.00014899,2]
[337212195,1725501050300,-500.0,0.00014899,2]
[337212197,1725501050311,-500.0,0.00014899,2]
[337212199,1725501050320,-636.1,0.00014899,2]
[337212201,1725501050332,-500.0,0.00014899,2]
[337212203,1725501050341,-889.54,0.00014899,2]
[337212204,1725501050350,-500.0,0.00014899,2]
[337212207,1725501050361,-500.0,0.00014899,2]
[337212209,1725501050371,-582.39,0.00014899,2]
[337212211,1725501050382,-500.0,0.00014899,2]
[337212213,1725501050391,-500.94,0.00014899,2]
[337212215,1725501050400,-624.44,0.00014899,2]
[337212217,1725501050409,-500.0,0.00014899,2]
[337212219,1725501050419,-151.45753278,0.00014899,2]
[337212221,1725501050429,-180.15201954,0.000149,2]
[337212223,1725501050438,-2615.431457,0.000149,4]
[337212224,1725501050447,-305.61619434,0.000149,2]
[337212225,1725501050457,-4308.45201801,0.000149,2]
[337212226,1725501050466,-639.16158784,0.000149,2]
[337212227,1725501050475,-798.44911521,0.00014938,2]
[337212228,1725501050485,-150.85097069,0.00014959,2]
[337212229,1725501050494,-315.0,0.00014959,30]
[337212230,1725501050504,-539.46681579,0.00014961,2]
[337212231,1725501050513,-539.46681579,0.00014962,2]
[337212232,1725501050522,-539.46681579,0.00014963,2]
[337212233,1725501050531,-539.46681579,0.00014965,2]
[337212234,1725501050540,-539.46681579,0.00014967,2]
[337212235,1725501050550,-315.0,0.00014968,30]
[337212236,1725501050559,-315.0,0.00014969,30]
[337212237,1725501050569,-500.0,0.00014971,2]
[337212238,1725501050578,-3153.18,0.00014971,2]
[337212239,1725501050588,-940.12,0.00014971,2]
[337212240,1725501050597,-566.94,0.00014971,2]
[337212241,1725501050606,-534.68,0.00014971,2]
[337212242,1725501050615,-518.7,0.00014971,2]
[337212243,1725501050624,-1065.97,0.00014971,2]
[337212244,1725501050634,-837.31,0.00014971,2]
[337212245,1725501050644,-500.0,0.00014971,2]
[337212246,1725501050653,-1021.79,0.00014971,2]
[337212247,1725501050663,-500.0,0.00014971,2]
[337212248,1725501050672,-496.86085553,0.00014971,2]
[337212249,1725501050682,-922.89,0.00014971,2]
[337212250,1725501050691,-500.0,0.00014971,2]
[337212251,1725501050700,-500.0,0.00014971,2]
[337212252,1725501050710,-1807.0,0.00014971,2]
[337212253,1725501050720,-2541.07,0.00014971,2]
[337212254,1725501050731,-500.0,0.00014971,2]
[337212255,1725501050741,-500.0,0.00014971,2]
[337212256,1725501050751,-526.62432823,0.00014971,2]
[337212257,1725501050761,-520.11860639,0.00014971,2]
[337212259,1725501050770,-500.0,0.00014971,2]
[337212260,1725501050779,-591.92,0.00014971,2]
[337212261,1725501050789,-546.34,0.00014971,2]
[337212262,1725501050799,-492.14896466,0.00014971,2]
[337212263,1725501050808,-552.38,0.00014971,2]
[337212264,1725501050818,-500.0,0.00014971,2]
[337212265,1725501050828,-500.0,0.00014971,2]
[337212266,1725501050838,-250.6921209,0.00014971,2]
[337212267,1725501050847,-525.79555955,0.00014971,2]
[337212268,1725501050857,-500.0,0.00014971,2]
[337212269,1725501050866,-588.03,0.00014971,2]
[337212270,1725501050875,-1053.46,0.00014971,2]
[337212271,1725501050884,-289.13784199,0.00014971,2]
[337212272,1725501050895,-529.16691413,0.00014971,2]
[337212273,1725501050904,-500.0,0.00014971,2]
[337212274,1725501050914,-500.0,0.00014971,2]
[337212275,1725501050924,-573.64,0.00014971,2]
[337212276,1725501050933,-500.0,0.00014971,2]
[337212277,1725501050943,-519.91053031,0.00014971,2]
[337212278,1725501050952,-2719.8,0.00014971,2]
[337212279,1725501050962,-510.1901622,0.00014971,2]
[337212280,1725501050975,-500.0,0.00014971,2]
[337212281,1725501050985,-500.0,0.00014971,2]
[337212282,1725501050994,-500.0,0.00014971,2]
[337212283,1725501051003,-192.24409487,0.00014971,2]
[337212284,1725501051013,-500.0,0.00014971,2]
[337212285,1725501051022,-500.0,0.00014971,2]
[337212290,1725501051115,-500.0,0.00014971,2]
[337212291,1725501051154,-500.0,0.00014971,2]
[337212292,1725501051163,-500.0,0.00014971,2]
[337212293,1725501051172,-202.50355888,0.00014971,2]
[337212294,1725501051181,-500.0,0.00014971,2]
[337212295,1725501051190,-500.0,0.00014971,2]
[337212296,1725501051199,-500.0,0.00014971,2]
[337212297,1725501051208,-500.0,0.00014971,2]
[337212298,1725501051218,-846.14,0.00014971,2]
[337212299,1725501051227,-500.0,0.00014971,2]
[337212300,1725501051236,-989.47,0.00014971,2]
[337212301,1725501051246,-1269.37,0.00014971,2]
[337212302,1725501051255,-500.0,0.00014971,2]
[337212303,1725501051264,-500.0,0.00014971,2]
[337212304,1725501051273,-1302.95,0.00014971,2]
[337212305,1725501051282,-735.55,0.00014971,2]
[337212306,1725501051292,-759.75,0.00014971,2]
[337212307,1725501051301,-500.0,0.00014971,2]
[337212308,1725501051310,-500.0,0.00014971,2]
[337212309,1725501051320,-1391.46,0.00014971,2]
[337212311,1725501051329,-500.0,0.00014971,2]
[337212313,1725501051338,-545.5,0.00014971,2]
[337212315,1725501051347,-1426.67,0.00014971,2]
[337212316,1725501051357,-518.55,0.00014971,2]
[337212317,1725501051366,-500.0,0.00014971,2]
[337212318,1725501051375,-646.65,0.00014971,2]
[337212319,1725501051385,-500.0,0.00014971,2]
[337212320,1725501051394,-500.0,0.00014971,2]
[337212321,1725501051403,-500.0,0.00014971,2]
[337212322,1725501051412,-2026.89,0.00014972,2]
[337212323,1725501051421,-500.0,0.00014972,2]
[337212324,1725501051431,-1474.2,0.00014972,2]
[337212325,1725501051440,-500.0,0.00014972,2]
[337212326,1725501051449,-500.0,0.00014972,2]
[337212327,1725501051458,-628.04,0.00014972,2]
[337212328,1725501051468,-500.0,0.00014972,2]
[337212329,1725501051477,-997.26,0.00014972,2]
[337212330,1725501051486,-1311.39,0.00014972,2]
[337212331,1725501051495,-663.6,0.00014972,2]
[337212332,1725501051504,-3245.99,0.00014972,2]
[337212333,1725501051514,-500.0,0.00014972,2]
[337212334,1725501051523,-695.26,0.00014972,2]
[337212335,1725501051532,-500.0,0.00014972,2]